[Event "MČR juniorů a juniorek v rapid šachu 2024"]
[Site "Hotel Fit Fun, Harrachov, Czech Republic"]
[Date "2024.09.22"]
[Round "7.30"]
[White "Martinkovicova Nela"]
[Black "Pes Matej"]
[Result "0-1"]
[TimeControl "20+5"]
[WhiteFideId "23715596"]
[BlackFideId "23766816"]
[WhiteElo "1446"]
[BlackElo "1697"]

1. e4 {[%clk 00:19:57]} {[%emt 00:00:12]} c5 {[%clk 00:20:04]} {[%emt
00:00:06]} 2. c4 {[%clk 00:19:41]} {[%emt 00:00:20]} Nc6 {[%clk 00:19:59]}
{[%emt 00:00:10]} 3. Nc3 {[%clk 00:19:28]} {[%emt 00:00:20]} g6 {[%clk
00:19:48]} {[%emt 00:00:15]} 4. g3 {[%clk 00:19:15]} {[%emt 00:00:18]} Bg7
{[%clk 00:19:46]} {[%emt 00:00:06]} 5. Bg2 {[%clk 00:18:57]} {[%emt 00:00:24]}
e6 {[%clk 00:18:59]} {[%emt 00:00:51]} 6. d3 {[%clk 00:18:38]} {[%emt
00:00:24]} Nge7 {[%clk 00:18:58]} {[%emt 00:00:07]} 7. Nge2 {[%clk 00:18:19]}
{[%emt 00:00:24]} O-O {[%clk 00:17:54]} {[%emt 00:01:09]} 8. O-O {[%clk
00:17:37]} {[%emt 00:00:46]} d6 {[%clk 00:17:25]} {[%emt 00:00:34]} 9. f4
{[%clk 00:16:51]} {[%emt 00:00:51]} a6 {[%clk 00:14:59]} {[%emt 00:02:32]} 10.
Rb1 {[%clk 00:15:51]} {[%emt 00:01:04]} f5 {[%clk 00:14:12]} {[%emt 00:00:52]}
11. Be3 {[%clk 00:14:36]} {[%emt 00:01:20]} Nd4 {[%clk 00:12:53]} {[%emt
00:01:25]} 12. Qd2 {[%clk 00:12:15]} {[%emt 00:02:26]} Nec6 {[%clk 00:11:51]}
{[%emt 00:01:07]} 13. Kh1 {[%clk 00:10:17]} {[%emt 00:02:03]} Rb8 {[%clk
00:11:28]} {[%emt 00:00:28]} 14. a3 {[%clk 00:10:07]} {[%emt 00:00:16]} Bd7
{[%clk 00:09:41]} {[%emt 00:01:52]} 15. b4 {[%clk 00:09:48]} {[%emt 00:00:22]}
Nxe2 {[%clk 00:07:48]} {[%emt 00:01:58]} 16. Nxe2 {[%clk 00:09:28]} {[%emt
00:00:25]} cxb4 {[%clk 00:07:39]} {[%emt 00:00:15]} 17. axb4 {[%clk 00:09:16]}
{[%emt 00:00:17]} b5 {[%clk 00:06:53]} {[%emt 00:00:52]} 18. cxb5 {[%clk
00:08:48]} {[%emt 00:00:33]} Rxb5 {[%clk 00:06:11]} {[%emt 00:00:46]} 19. Nc3
{[%clk 00:07:43]} {[%emt 00:01:09]} Rxb4 {[%clk 00:05:56]} {[%emt 00:00:20]} 20.
Rxb4 {[%clk 00:07:14]} {[%emt 00:00:35]} Nxb4 {[%clk 00:05:59]} {[%emt
00:00:02]} 21. Rb1 {[%clk 00:05:57]} {[%emt 00:01:21]} a5 {[%clk 00:05:50]}
{[%emt 00:00:15]} 22. Ne2 {[%clk 00:04:34]} {[%emt 00:01:27]} Qc7 {[%clk
00:04:39]} {[%emt 00:01:17]} 23. Rc1 {[%clk 00:04:18]} {[%emt 00:00:22]} Qb8
{[%clk 00:04:34]} {[%emt 00:00:09]} 24. Nd4 {[%clk 00:03:20]} {[%emt 00:01:02]}
e5 {[%clk 00:04:31]} {[%emt 00:00:08]} 25. fxe5 {[%clk 00:03:17]} {[%emt
00:00:09]} dxe5 {[%clk 00:04:31]} {[%emt 00:00:05]} 26. Bh6 {[%clk 00:03:02]}
{[%emt 00:00:20]} exd4 {[%clk 00:04:11]} {[%emt 00:00:25]} 27. Bxg7 {[%clk
00:02:19]} {[%emt 00:00:47]} Kxg7 {[%clk 00:04:14]} {[%emt 00:00:03]} 28. Ra1
{[%clk 00:02:10]} {[%emt 00:00:14]} fxe4 {[%clk 00:04:05]} {[%emt 00:00:13]} 29.
dxe4 {[%clk 00:02:00]} {[%emt 00:00:15]} Qb6 {[%clk 00:03:58]} {[%emt
00:00:13]} 30. Rd1 {[%clk 00:01:26]} {[%emt 00:00:39]} d3 {[%clk 00:03:40]}
{[%emt 00:00:22]} 31. Qb2+ {[%clk 00:01:01]} {[%emt 00:00:31]} Kg8 {[%clk
00:03:38]} {[%emt 00:00:07]} 32. Qb3+ {[%clk 00:00:59]} {[%emt 00:00:06]} Be6
{[%clk 00:03:41]} {[%emt 00:00:03]} 33. Qb2 {[%clk 00:00:51]} {[%emt 00:00:13]}
Rf2 {[%clk 00:03:31]} {[%emt 00:00:15]} 34. Qc3 {[%clk 00:00:31]} {[%emt
00:00:24]} Qe3 {[%clk 00:02:53]} {[%emt 00:00:42]} 35. Re1 {[%clk 00:00:13]}
{[%emt 00:00:25]} Re2 {[%clk 00:02:46]} {[%emt 00:00:11]} 36. Rd1 {[%clk
00:00:12]} {[%emt 00:00:07]} Qf2 {[%clk 00:02:14]} {[%emt 00:00:37]} 37. Rg1
{[%clk 00:00:11]} {[%emt 00:00:05]} Bh3 {[%clk 00:01:57]} {[%emt 00:00:22]} 0-1



[ePGN "0.1;DGT LiveChess/2.2.6"]

[Event "MČR juniorů a juniorek v rapid šachu 2024"]
[Site "Hotel Fit Fun, Harrachov, Czech Republic"]
[Date "2024.09.22"]
[Round "7.31"]
[White "Horvath Michal"]
[Black "Marxova Sarka"]
[Result "0-1"]
[TimeControl "20+5"]
[BlackFideId "23701862"]
[WhiteElo "1000"]
[BlackElo "1684"]

1. e4 {[%clk 00:20:07]} {[%emt 00:00:02]} e6 {[%clk 00:20:08]} {[%emt
00:00:03]} 2. d4 {[%clk 00:20:07]} {[%emt 00:00:04]} d5 {[%clk 00:20:05]}
{[%emt 00:00:08]} 3. e5 {[%clk 00:20:09]} {[%emt 00:00:03]} c5 {[%clk
00:20:08]} {[%emt 00:00:01]} 4. c3 {[%clk 00:20:13]} Nc6 {[%clk 00:20:12]}
{[%emt 00:00:02]} 5. Nf3 {[%clk 00:20:10]} {[%emt 00:00:08]} Qb6 {[%clk
00:20:14]} {[%emt 00:00:02]} 6. Be2 {[%clk 00:20:07]} {[%emt 00:00:09]} Nge7
{[%clk 00:20:08]} {[%emt 00:00:11]} 7. Nbd2 {[%clk 00:19:32]} {[%emt 00:00:39]}
cxd4 {[%clk 00:20:00]} {[%emt 00:00:13]} 8. cxd4 {[%clk 00:19:28]} {[%emt
00:00:10]} Nxd4 {[%clk 00:19:57]} {[%emt 00:00:08]} 9. Nxd4 {[%clk 00:18:43]}
{[%emt 00:00:50]} Qxd4 {[%clk 00:19:57]} {[%emt 00:00:05]} 10. O-O {[%clk
00:18:41]} {[%emt 00:00:06]} Nc6 {[%clk 00:19:49]} {[%emt 00:00:13]} 11. Nf3
{[%clk 00:17:41]} {[%emt 00:01:05]} Qxd1 {[%clk 00:19:15]} {[%emt 00:00:39]} 12.
Rxd1 {[%clk 00:17:42]} {[%emt 00:00:04]} Bc5 {[%clk 00:19:12]} {[%emt
00:00:07]} 13. Bd2 {[%clk 00:17:29]} {[%emt 00:00:18]} Nd4 {[%clk 00:18:21]}
{[%emt 00:00:56]} 14. Re1 {[%clk 00:15:45]} {[%emt 00:01:50]} Nc2 {[%clk
00:17:11]} {[%emt 00:01:15]} 15. Rec1 {[%emt 00:02:03]} Bxf2+ {[%clk 00:16:13]}
{[%emt 00:00:02]} 16. Kxf2 {[%clk 00:14:49]} {[%emt 00:00:05]} Nxa1 {[%clk
00:16:15]} {[%emt 00:00:03]} 17. Rxa1 {[%clk 00:14:51]} {[%emt 00:00:02]} Bd7
{[%clk 00:16:14]} {[%emt 00:00:06]} 18. Nd4 {[%clk 00:13:59]} {[%emt 00:00:57]}
O-O {[%clk 00:15:25]} {[%emt 00:00:54]} 19. Bd3 {[%clk 00:12:30]} {[%emt
00:01:34]} f6 {[%clk 00:15:04]} {[%emt 00:00:26]} 20. exf6 {[%clk 00:11:14]}
{[%emt 00:01:21]} Rxf6+ {[%clk 00:15:00]} {[%emt 00:00:10]} 21. Nf3 {[%clk
00:11:11]} {[%emt 00:00:07]} e5 {[%clk 00:14:22]} {[%emt 00:00:43]} 22. Bc3
{[%clk 00:10:10]} {[%emt 00:01:07]} d4 {[%clk 00:14:16]} {[%emt 00:00:10]} 23.
Bd2 {[%clk 00:10:01]} {[%emt 00:00:14]} Bc6 {[%clk 00:14:16]} {[%emt 00:00:04]}
24. Bg5 {[%clk 00:09:33]} {[%emt 00:00:34]} Rff8 {[%clk 00:13:49]} {[%emt
00:00:31]} 25. Be7 {[%clk 00:08:57]} {[%emt 00:00:42]} Rfe8 {[%clk 00:13:26]}
{[%emt 00:00:29]} 26. Bc4+ {[%clk 00:08:15]} {[%emt 00:00:47]} Kh8 {[%clk
00:13:06]} {[%emt 00:00:24]} 27. Ba3 {[%clk 00:07:51]} {[%emt 00:00:29]} Bxf3
{[%clk 00:12:42]} {[%emt 00:00:29]} 28. gxf3 {[%clk 00:07:53]} {[%emt
00:00:03]} Rac8 {[%clk 00:11:10]} {[%emt 00:01:37]} 29. Bd3 {[%clk 00:07:41]}
{[%emt 00:00:17]} g6 {[%clk 00:10:36]} {[%emt 00:00:39]} 30. Re1 {[%clk
00:07:29]} {[%emt 00:00:17]} Kg7 {[%clk 00:10:23]} {[%emt 00:00:17]} 31. Bb5
{[%clk 00:06:26]} {[%emt 00:01:09]} Rc2+ {[%clk 00:08:10]} {[%emt 00:02:18]} 32.
Kg3 {[%clk 00:06:17]} {[%emt 00:00:14]} Rd8 {[%clk 00:07:59]} {[%emt 00:00:15]}
33. Rxe5 {[%clk 00:04:44]} {[%emt 00:01:39]} d3 {[%clk 00:07:48]} {[%emt
00:00:17]} 34. Ba4 {[%clk 00:03:32]} {[%emt 00:01:17]} Rc1 {[%clk 00:06:49]}
{[%emt 00:01:03]} 35. Re7+ {[%clk 00:01:58]} {[%emt 00:01:40]} Kh6 {[%clk
00:06:09]} {[%emt 00:00:44]} 36. Rxb7 {[%clk 00:00:41]} {[%emt 00:01:22]} d2
{[%clk 00:06:03]} {[%emt 00:00:12]} 37. Rxa7 {[%clk 00:00:37]} {[%emt
00:00:09]} d1=Q {[%clk 00:04:51]} {[%emt 00:01:16]} 38. Bxd1 {[%clk 00:00:41]}
{[%emt 00:00:01]} Rcxd1 {[%clk 00:04:49]} {[%emt 00:00:08]} 39. Be7 {[%clk
00:00:18]} {[%emt 00:00:27]} Rc8 {[%clk 00:04:17]} {[%emt 00:00:35]} 40. Kg4
{[%clk 00:00:13]} {[%emt 00:00:13]} Rd4+ {[%clk 00:03:46]} {[%emt 00:00:35]} 41.
f4 {[%clk 00:00:15]} {[%emt 00:00:04]} g5 {[%clk 00:03:02]} {[%emt 00:00:48]}
42. Bxg5+ {[%clk 00:00:18]} {[%emt 00:00:02]} Kg6 {[%clk 00:03:05]} {[%emt
00:00:02]} 43. Ra6+ {[%clk 00:00:20]} {[%emt 00:00:04]} Kf7 {[%clk 00:03:03]}
{[%emt 00:00:06]} 44. Ra7+ {[%clk 00:00:16]} {[%emt 00:00:09]} Kg6 {[%clk
00:02:56]} {[%emt 00:00:12]} 45. Ra6+ {[%clk 00:00:15]} {[%emt 00:00:06]} Kf7
{[%clk 00:02:58]} {[%emt 00:00:02]} 46. a4 {[%clk 00:00:13]} {[%emt 00:00:08]}
Rb8 {[%clk 00:02:48]} {[%emt 00:00:14]} 47. Bf6 {[%clk 00:00:12]} {[%emt
00:00:07]} Rd2 {[%clk 00:01:11]} {[%emt 00:01:42]} 48. Bc3 {[%clk 00:00:13]}
{[%emt 00:00:05]} Rxh2 {[%clk 00:01:05]} {[%emt 00:00:11]} 49. Ra7+ {[%clk
00:00:16]} {[%emt 00:00:02]} Kf8 {[%clk 00:00:41]} {[%emt 00:00:26]} 50. a5
{[%clk 00:00:18]} {[%emt 00:00:05]} h5+ {[%clk 00:00:35]} {[%emt 00:00:11]} 51.
Kf5 {[%clk 00:00:14]} {[%emt 00:00:09]} Rg2 {[%clk 00:00:23]} {[%emt 00:00:17]}
0-1



[ePGN "0.1;DGT LiveChess/2.2.6"]

[Event "MČR juniorů a juniorek v rapid šachu 2024"]
[Site "Hotel Fit Fun, Harrachov, Czech Republic"]
[Date "2024.09.22"]
[Round "7.32"]
[White "Vratil Tomas"]
[Black "Macova Marketa"]
[Result "1-0"]
[TimeControl "20+5"]
[WhiteFideId "23756870"]
[BlackFideId "23715588"]
[WhiteElo "1671"]
[BlackElo "1587"]

1. e4 {[%clk 00:20:07]} {[%emt 00:00:02]} c5 {[%clk 00:19:44]} {[%emt
00:00:26]} 2. c3 {[%clk 00:20:09]} {[%emt 00:00:03]} Nf6 {[%clk 00:19:46]}
{[%emt 00:00:03]} 3. e5 {[%clk 00:20:13]} {[%emt 00:00:02]} Nd5 {[%clk
00:19:49]} {[%emt 00:00:02]} 4. d4 {[%clk 00:20:17]} {[%emt 00:00:01]} cxd4
{[%clk 00:19:51]} {[%emt 00:00:03]} 5. cxd4 {[%clk 00:20:20]} {[%emt 00:00:01]}
Nc6 {[%clk 00:19:51]} {[%emt 00:00:06]} 6. Nf3 {[%clk 00:20:21]} {[%emt
00:00:03]} d6 {[%clk 00:19:52]} {[%emt 00:00:04]} 7. Bc4 {[%clk 00:20:19]}
{[%emt 00:00:08]} Nb6 {[%clk 00:19:54]} {[%emt 00:00:02]} 8. Bb3 {[%clk
00:19:56]} {[%emt 00:00:28]} Bg4 {[%clk 00:19:43]} {[%emt 00:00:16]} 9. Bxf7+
{[%clk 00:19:25]} {[%emt 00:00:36]} Kd7 {[%clk 00:18:42]} {[%emt 00:01:06]} 10.
e6+ {[%clk 00:13:47]} {[%emt 00:05:43]} Kc7 {[%clk 00:18:30]} {[%emt 00:00:17]}
11. d5 {[%clk 00:13:50]} {[%emt 00:00:02]} Nb4 {[%clk 00:17:16]} {[%emt
00:01:18]} 12. Nc3 {[%clk 00:13:34]} {[%emt 00:00:21]} Rc8 {[%clk 00:17:04]}
{[%emt 00:00:18]} 13. Be3 {[%clk 00:12:06]} {[%emt 00:01:33]} Kb8 {[%clk
00:16:47]} {[%emt 00:00:22]} 14. O-O {[%clk 00:11:09]} {[%emt 00:01:01]} g6
{[%clk 00:15:49]} {[%emt 00:01:02]} 15. Bd4 {[%clk 00:09:11]} {[%emt 00:02:04]}
Bh6 {[%clk 00:15:49]} {[%emt 00:00:04]} 16. Bxh8 {[%clk 00:09:14]} {[%emt
00:00:04]} Qxh8 {[%clk 00:15:52]} {[%emt 00:00:01]} 17. a3 {[%clk 00:06:37]}
{[%emt 00:02:42]} Na6 {[%clk 00:15:43]} {[%emt 00:00:14]} 18. Rc1 {[%clk
00:06:40]} {[%emt 00:00:03]} Bxc1 {[%clk 00:15:33]} {[%emt 00:00:14]} 19. Qxc1
{[%clk 00:06:43]} {[%emt 00:00:01]} Bxf3 {[%clk 00:15:19]} {[%emt 00:00:19]} 20.
gxf3 {[%clk 00:06:47]} {[%emt 00:00:02]} Qf6 {[%clk 00:14:04]} {[%emt
00:01:20]} 21. Qh6 {[%clk 00:05:23]} {[%emt 00:01:29]} Qxf3 {[%clk 00:12:58]}
{[%emt 00:01:11]} 22. Qxh7 {[%clk 00:05:17]} {[%emt 00:00:11]} Rc4 {[%clk
00:12:45]} {[%emt 00:00:18]} 23. Qg8+ {[%clk 00:03:21]} {[%emt 00:02:01]} Nc8
{[%clk 00:12:45]} {[%emt 00:00:05]} 24. Re1 {[%clk 00:03:25]} {[%emt 00:00:01]}
Rg4+ {[%clk 00:10:54]} {[%emt 00:01:56]} 25. Kf1 {[%clk 00:03:29]} Qd3+ {[%clk
00:10:14]} {[%emt 00:00:45]} 26. Re2 {[%clk 00:02:43]} {[%emt 00:00:52]} Qh3+
{[%clk 00:09:53]} {[%emt 00:00:26]} 27. Ke1 {[%clk 00:02:46]} {[%emt 00:00:02]}
Rg1+ {[%clk 00:09:37]} {[%emt 00:00:20]} 28. Kd2 {[%clk 00:02:40]} {[%emt
00:00:12]} Qh6+ {[%clk 00:09:28]} {[%emt 00:00:13]} 29. Re3 {[%clk 00:02:32]}
{[%emt 00:00:13]} Qf4 {[%clk 00:08:23]} {[%emt 00:01:11]} 30. Be8 {[%clk
00:01:53]} {[%emt 00:00:44]} Qxf2+ {[%clk 00:08:19]} {[%emt 00:00:09]} 31. Ne2
{[%clk 00:01:57]} {[%emt 00:00:01]} Nc5 {[%clk 00:07:27]} {[%emt 00:00:58]} 32.
Bd7 {[%clk 00:01:09]} {[%emt 00:00:53]} Nb3+ {[%clk 00:07:05]} {[%emt
00:00:26]} 33. Kc2 {[%clk 00:00:24]} {[%emt 00:00:51]} Rc1+ {[%clk 00:06:02]}
{[%emt 00:01:07]} 34. Kd3 {[%clk 00:00:26]} {[%emt 00:00:04]} Qf5+ {[%clk
00:05:40]} {[%emt 00:00:25]} 35. Re4 {[%clk 00:00:22]} {[%emt 00:00:09]} Qxd5+
{[%clk 00:05:32]} {[%emt 00:00:14]} 36. Ke3 {[%clk 00:00:13]} {[%emt 00:00:14]}
Qd2+ {[%clk 00:02:39]} {[%emt 00:02:56]} 37. Kf3 {[%clk 00:00:10]} {[%emt
00:00:10]} Rc2 {[%clk 00:02:00]} {[%emt 00:00:44]} 38. Qxg6 {[%clk 00:00:08]}
{[%emt 00:00:07]} Qd3+ {[%clk 00:01:17]} {[%emt 00:00:48]} 39. Kf2 {[%clk
00:00:11]} {[%emt 00:00:02]} Nd4 {[%clk 00:00:34]} {[%emt 00:00:48]} 40. Qg4
{[%clk 00:00:12]} {[%emt 00:00:04]} Nxe2 {[%clk 00:00:30]} {[%emt 00:00:09]} 41.
Rxe2 {[%clk 00:00:15]} {[%emt 00:00:02]} Qd4+ {[%clk 00:00:26]} {[%emt
00:00:09]} 42. Qxd4 {[%clk 00:00:18]} {[%emt 00:00:03]} 1-0



[ePGN "0.1;DGT LiveChess/2.2.6"]

[Event "MČR juniorů a juniorek v rapid šachu 2024"]
[Site "Hotel Fit Fun, Harrachov, Czech Republic"]
[Date "2024.09.22"]
[Round "7.33"]
[White "Lebeda Frantisek Jiri"]
[Black "Jun Rostislav"]
[Result "1-0"]
[TimeControl "20+5"]
[BlackFideId "23719524"]
[WhiteElo "1000"]
[BlackElo "1641"]

1. e4 {[%clk 00:20:08]} {[%emt 00:00:01]} c5 {[%clk 00:20:08]} {[%emt
00:00:02]} 2. Nf3 {[%clk 00:20:10]} {[%emt 00:00:03]} Nc6 {[%clk 00:20:12]}
{[%emt 00:00:02]} 3. Bb5 {[%clk 00:20:12]} {[%emt 00:00:03]} e6 {[%clk
00:20:15]} {[%emt 00:00:03]} 4. O-O {[%clk 00:20:13]} {[%emt 00:00:03]} d6
{[%clk 00:20:18]} {[%emt 00:00:03]} 5. c3 {[%clk 00:20:12]} {[%emt 00:00:04]}
Nf6 {[%clk 00:20:20]} {[%emt 00:00:03]} 6. Re1 {[%clk 00:20:15]} {[%emt
00:00:02]} Be7 {[%clk 00:20:24]} {[%emt 00:00:03]} 7. d4 {[%clk 00:20:15]}
{[%emt 00:00:04]} cxd4 {[%clk 00:20:26]} {[%emt 00:00:03]} 8. cxd4 {[%clk
00:20:17]} {[%emt 00:00:02]} O-O {[%clk 00:20:25]} {[%emt 00:00:07]} 9. Nc3
{[%clk 00:20:18]} {[%emt 00:00:04]} a6 {[%clk 00:20:28]} {[%emt 00:00:03]} 10.
Bxc6 {[%clk 00:19:38]} {[%emt 00:00:44]} bxc6 {[%clk 00:20:31]} {[%emt
00:00:02]} 11. Bf4 {[%clk 00:19:12]} {[%emt 00:00:31]} Bb7 {[%clk 00:19:54]}
{[%emt 00:00:41]} 12. h3 {[%clk 00:18:24]} {[%emt 00:00:53]} Rc8 {[%clk
00:17:33]} {[%emt 00:02:26]} 13. e5 {[%clk 00:17:33]} {[%emt 00:00:57]} Nd5
{[%clk 00:16:26]} {[%emt 00:01:11]} 14. Nxd5 {[%clk 00:17:20]} {[%emt
00:00:19]} cxd5 {[%clk 00:16:24]} {[%emt 00:00:06]} 15. Qb3 {[%clk 00:16:59]}
{[%emt 00:00:26]} Bc6 {[%clk 00:14:01]} {[%emt 00:02:28]} 16. Rac1 {[%clk
00:15:41]} {[%emt 00:01:22]} a5 {[%clk 00:13:05]} {[%emt 00:01:02]} 17. a4
{[%clk 00:14:50]} {[%emt 00:00:56]} Qd7 {[%clk 00:12:50]} {[%emt 00:00:20]} 18.
Qc3 {[%clk 00:11:39]} {[%emt 00:03:15]} Bxa4 {[%clk 00:07:28]} {[%emt
00:05:27]} 19. Qxa5 {[%clk 00:10:51]} {[%emt 00:00:53]} Bc6 {[%clk 00:05:50]}
{[%emt 00:01:43]} 20. exd6 {[%clk 00:07:40]} {[%emt 00:03:16]} Bxd6 {[%clk
00:05:52]} {[%emt 00:00:03]} 21. Bxd6 {[%clk 00:06:59]} {[%emt 00:00:46]} Qxd6
{[%clk 00:05:55]} {[%emt 00:00:01]} 22. Ne5 {[%clk 00:06:26]} {[%emt 00:00:38]}
f6 {[%clk 00:03:32]} {[%emt 00:02:28]} 23. Nxc6 {[%clk 00:04:57]} {[%emt
00:01:34]} Rxc6 {[%clk 00:03:36]} {[%emt 00:00:02]} 24. Rxc6 {[%clk 00:04:23]}
{[%emt 00:00:39]} Qxc6 {[%clk 00:03:40]} {[%emt 00:00:01]} 25. Ra1 {[%clk
00:03:42]} {[%emt 00:00:45]} Rb8 {[%clk 00:02:12]} {[%emt 00:01:33]} 26. b4
{[%clk 00:02:59]} {[%emt 00:00:49]} Qc4 {[%clk 00:01:37]} {[%emt 00:00:35]} 27.
Qa7 {[%clk 00:01:22]} {[%emt 00:01:47]} Qxb4 {[%clk 00:01:32]} {[%emt
00:00:10]} 28. Rc1 {[%clk 00:01:09]} {[%emt 00:00:17]} Qd6 {[%clk 00:01:09]}
{[%emt 00:00:21]} 29. g3 {[%clk 00:00:49]} {[%emt 00:00:33]} Qb6 {[%clk
00:00:43]} {[%emt 00:00:08]} 30. Rc8+ {[%clk 00:00:44]} {[%emt 00:00:33]} 1-0



[ePGN "0.1;DGT LiveChess/2.2.6"]

[Event "MČR juniorů a juniorek v rapid šachu 2024"]
[Site "Hotel Fit Fun, Harrachov, Czech Republic"]
[Date "2024.09.22"]
[Round "7.34"]
[White "Taborska Aneta"]
[Black "Kopecka Libuse"]
[Result "0-1"]
[TimeControl "20+5"]
[WhiteFideId "23733039"]
[BlackFideId "23748826"]
[WhiteElo "1582"]
[BlackElo "1496"]

1. d4 {[%clk 00:20:08]} d5 {[%clk 00:20:09]} {[%emt 00:00:01]} 2. Nf3 {[%clk
00:20:12]} {[%emt 00:00:01]} Nf6 {[%clk 00:20:13]} {[%emt 00:00:02]} 3. e3
{[%clk 00:20:16]} {[%emt 00:00:01]} Bf5 {[%clk 00:20:01]} {[%emt 00:00:16]} 4.
Bd3 {[%emt 00:00:21]} Bxd3 {[%clk 00:19:45]} {[%emt 00:00:03]} 5. Qxd3 {[%clk
00:20:20]} {[%emt 00:00:03]} Nc6 {[%clk 00:19:47]} {[%emt 00:00:04]} 6. Nbd2
{[%clk 00:20:22]} {[%emt 00:00:02]} e6 {[%clk 00:19:43]} {[%emt 00:00:10]} 7.
O-O {[%clk 00:20:24]} {[%emt 00:00:02]} Bd6 {[%clk 00:19:18]} {[%emt 00:00:30]}
8. c3 {[%clk 00:20:27]} {[%emt 00:00:02]} h6 {[%clk 00:19:01]} {[%emt
00:00:22]} 9. Re1 {[%clk 00:20:27]} {[%emt 00:00:05]} O-O {[%clk 00:19:01]}
{[%emt 00:00:06]} 10. e4 {[%clk 00:20:29]} {[%emt 00:00:02]} dxe4 {[%clk
00:18:24]} {[%emt 00:00:43]} 11. Nxe4 {[%clk 00:20:31]} {[%emt 00:00:02]} Re8
{[%clk 00:17:30]} {[%emt 00:00:59]} 12. Bd2 {[%clk 00:20:23]} {[%emt 00:00:13]}
Qe7 {[%clk 00:15:34]} {[%emt 00:02:02]} 13. Nxf6+ {[%clk 00:20:02]} {[%emt
00:00:25]} Qxf6 {[%clk 00:15:27]} {[%emt 00:00:12]} 14. Re4 {[%clk 00:20:03]}
{[%emt 00:00:05]} Kf8 {[%clk 00:14:13]} {[%emt 00:01:18]} 15. Ne5 {[%clk
00:19:50]} {[%emt 00:00:18]} Rad8 {[%clk 00:13:12]} {[%emt 00:01:06]} 16. Rae1
{[%clk 00:19:40]} {[%emt 00:00:14]} Nxe5 {[%clk 00:12:57]} {[%emt 00:00:21]} 17.
dxe5 {[%clk 00:19:32]} {[%emt 00:00:13]} Bxe5 {[%clk 00:12:53]} {[%emt
00:00:09]} 18. Qe3 {[%clk 00:19:13]} {[%emt 00:00:23]} Bd6 {[%clk 00:12:03]}
{[%emt 00:00:56]} 19. Qxa7 {[%clk 00:18:52]} {[%emt 00:00:27]} b6 {[%clk
00:10:48]} {[%emt 00:01:19]} 20. Qa4 {[%clk 00:18:30]} {[%emt 00:00:26]} Bxh2+
{[%clk 00:10:04]} {[%emt 00:00:50]} 21. Kxh2 {[%clk 00:18:17]} {[%emt
00:00:18]} Rxd2 {[%clk 00:10:07]} {[%emt 00:00:02]} 22. Rf4 {[%clk 00:17:58]}
{[%emt 00:00:24]} Qg5 {[%clk 00:07:54]} {[%emt 00:02:17]} 23. Qb4+ {[%clk
00:17:33]} {[%emt 00:00:30]} Qc5 {[%clk 00:06:51]} {[%emt 00:01:09]} 24. f3
{[%clk 00:16:36]} {[%emt 00:01:02]} Qxb4 {[%clk 00:06:14]} {[%emt 00:00:43]} 25.
Rxb4 {[%clk 00:16:37]} {[%emt 00:00:04]} Ra8 {[%clk 00:06:12]} {[%emt
00:00:07]} 26. a3 {[%clk 00:16:35]} {[%emt 00:00:06]} Rb8 {[%clk 00:05:54]}
{[%emt 00:00:24]} 27. Ree4 {[%clk 00:16:16]} {[%emt 00:00:21]} c5 {[%clk
00:05:38]} {[%emt 00:00:23]} 28. Rbc4 {[%clk 00:16:06]} {[%emt 00:00:15]} Rxb2
{[%clk 00:05:27]} {[%emt 00:00:17]} 29. Rf4 {[%clk 00:15:56]} {[%emt 00:00:11]}
Rb3 {[%clk 00:05:19]} {[%emt 00:00:16]} 30. a4 {[%clk 00:15:57]} {[%emt
00:00:04]} Ke7 {[%clk 00:04:58]} {[%emt 00:00:26]} 31. Rce4 {[%clk 00:15:39]}
{[%emt 00:00:23]} Rxc3 {[%clk 00:04:39]} {[%emt 00:00:24]} 32. Rg4 {[%clk
00:15:35]} {[%emt 00:00:09]} f5 {[%clk 00:04:09]} {[%emt 00:00:35]} 33. Rxg7+
{[%clk 00:15:34]} {[%emt 00:00:05]} Kf6 {[%clk 00:04:13]} {[%emt 00:00:03]} 0-1



[ePGN "0.1;DGT LiveChess/2.2.6"]